fUSD/lending_fUSD_20240505
["ID","MTS","AMOUNT","RATE_DAILY","PERIOD"]
[325435030,1714885845757,-500.0,0.00035616,8]
[325435031,1714885845766,-654.06,0.00035616,8]
[325435032,1714885845776,-1440.74,0.00035616,8]
[325435033,1714885845785,-2271.26,0.00035616,8]
[325435034,1714885845794,-500.0,0.00035616,2]
[325435035,1714885845803,-500.0,0.00035616,8]
[325435036,1714885845811,-500.0,0.00035616,8]
[325435037,1714885845820,-967.32,0.00035616,8]
[325435038,1714885845830,-284.46153448,0.00035616,8]
[325435039,1714885845839,-741.96,0.00035616,8]
[325435040,1714885845848,-1694.66,0.00035616,8]
[325435041,1714885845857,-500.0,0.00035616,8]
[325435043,1714885845867,-697.84,0.00035616,8]
[325435044,1714885845875,-500.0,0.00035616,8]
[325435045,1714885845884,-578.62,0.00035616,8]
[325435046,1714885845893,-537.12,0.00035616,8]
[325435047,1714885845902,-689.41,0.00035616,8]
[325435048,1714885845911,-500.0,0.00035616,8]
[325435049,1714885845919,-500.0,0.00035616,8]
[325435050,1714885845929,-500.0,0.00035616,8]
[325435051,1714885845938,-1109.03,0.00035616,8]
[325435052,1714885845946,-1852.08,0.00035616,8]
[325435053,1714885845955,-562.03,0.00035616,8]
[325435054,1714885845964,-1651.2,0.00035616,8]
[325435055,1714885845973,-500.0,0.00035616,8]
[325435056,1714885845982,-1720.73,0.00035616,8]
[325435057,1714885845991,-500.0,0.00035616,8]
[325435058,1714885846001,-714.59,0.00035616,8]
[325435059,1714885846010,-500.0,0.00035616,8]
[325435060,1714885846020,-500.0,0.00035616,8]
[325435061,1714885846029,-1362.71,0.00035616,8]
[325435062,1714885846038,-500.0,0.00035616,8]
[325435063,1714885846047,-1186.69,0.00035616,8]
[325435064,1714885846056,-773.41,0.00035616,8]
[325435065,1714885846065,-802.31,0.00035616,8]
[325435066,1714885846075,-1350.58,0.00035616,8]
[325435067,1714885846084,-2457.51,0.00035616,8]
[325435068,1714885846094,-1081.02,0.00035616,8]
[325435069,1714885846103,-573.53,0.00035616,8]
[325435070,1714885846112,-500.0,0.00035616,8]
[325435071,1714885846124,-798.74,0.00035616,8]
[325435072,1714885846133,-500.0,0.00035616,8]
[325435073,1714885846142,-851.58,0.00035616,8]
[325435074,1714885846151,-1960.42,0.00035616,8]
[325435075,1714885846160,-2988.5,0.00035616,8]
[325435076,1714885846171,-1290.0,0.00035616,8]
[325435077,1714885846185,-677.77,0.00035616,8]
[325435078,1714885846194,-2089.02,0.00035616,8]
[325435079,1714885846203,-275.90447301,0.00035616,8]
[325435080,1714885846232,-224.09552699,0.00035616,8]
[325435081,1714885846242,-500.0,0.00035616,8]
[325435082,1714885846252,-695.4,0.00035616,8]
[325435083,1714885846260,-500.0,0.00035616,8]
[325435084,1714885846270,-715.02,0.00035616,8]
[325435085,1714885846279,-500.0,0.00035616,8]
[325435086,1714885846288,-1703.56,0.00035616,8]
[325435087,1714885846297,-690.33,0.00035616,8]
[325435088,1714885846306,-533.89,0.00035616,8]
[325435089,1714885846315,-1356.79,0.00035616,8]
[325435090,1714885846324,-500.0,0.00035616,8]
[325435091,1714885846334,-500.0,0.00035616,8]
[325435092,1714885846344,-253.7765343,0.00035616,8]
[325435093,1714885846353,-1144.67,0.00035616,8]
[325435094,1714885846362,-500.0,0.00035616,8]
[325435095,1714885846372,-500.0,0.00035616,8]
[325435096,1714885846381,-826.05,0.00035616,8]
[325435097,1714885846391,-2325.79,0.00035616,8]
[325435098,1714885846401,-500.0,0.00035616,8]
[325435099,1714885846410,-500.0,0.00035616,8]
[325435100,1714885846419,-875.47,0.00035616,8]
[325435101,1714885846428,-515.5,0.00035616,8]
[325435102,1714885846438,-500.0,0.00035616,8]
[325435103,1714885846447,-500.0,0.00035616,7]
[325435104,1714885846457,-500.0,0.00035616,8]
[325435105,1714885846466,-939.63,0.00035616,8]
[325435106,1714885846475,-1047.29,0.00035616,8]
[325435107,1714885846484,-1441.46,0.00035616,8]
[325435108,1714885846494,-1841.58,0.00035616,8]
[325435109,1714885846504,-900.43,0.00035616,8]
[325435110,1714885846513,-2058.02,0.00035616,8]
[325435111,1714885846523,-500.0,0.00035616,8]
[325435112,1714885846531,-1667.66,0.00035616,8]
[325435113,1714885846541,-693.19316476,0.00035616,8]
[325435114,1714885846561,-1615.67683524,0.00035616,8]
[325435115,1714885846571,-500.0,0.00035616,8]
[325435116,1714885846580,-528.3,0.00035616,8]
[325435117,1714885846589,-766.64,0.00035616,8]
[325435118,1714885846598,-448.12276397,0.00035616,8]
[325435119,1714885846610,-103.03723603,0.00035616,8]
[325435120,1714885846620,-217.37112106,0.00035616,8]
[325435121,1714885847230,-217.82755542,0.00035612,4]
[325435122,1714885847240,-969.32887894,0.00035616,8]
[325435123,1714885847249,-306.0123075,0.00035616,8]
[325435124,1714885847263,-1344.3476925,0.00035616,8]
[325435125,1714885847278,-583.48,0.00035616,8]
[325435126,1714885847288,-1013.87,0.00035616,8]
[325435127,1714885847297,-1494.0,0.00035616,8]
[325435128,1714885847307,-1069.34,0.00035616,8]
[325435129,1714885847316,-1524.56,0.00035616,8]
[325435130,1714885847327,-2066.81,0.00035616,8]
[325435131,1714885847337,-1713.34,0.00035616,8]
[325435132,1714885847346,-1160.96,0.00035616,8]
[325435133,1714885847356,-1674.64,0.00035616,8]
[325435134,1714885847366,-893.37,0.00035616,8]
[325435135,1714885847377,-1780.16,0.00035616,8]
[325435136,1714885847387,-694.29,0.00035616,8]
[325435137,1714885847396,-509.35,0.00035616,8]
[325435138,1714885847405,-644.83,0.00035616,8]
[325435139,1714885847415,-1077.62,0.00035616,8]
[325435140,1714885847425,-644.54,0.00035616,8]
[325435141,1714885847435,-761.19,0.00035616,8]
[325435142,1714885847444,-500.0,0.00035616,8]
[325435143,1714885847454,-659.55,0.00035616,8]
[325435144,1714885847464,-727.48,0.00035616,8]
[325435145,1714885847474,-500.0,0.00035616,8]
[325435146,1714885847483,-500.0,0.00035616,8]
[325435147,1714885847493,-500.0,0.00035616,8]
[325435148,1714885847503,-1074.14,0.00035616,8]
[325435149,1714885847513,-2110.49,0.00035616,8]
[325435150,1714885847522,-1120.52,0.00035616,8]
[325435151,1714885847533,-1530.65,0.00035616,8]
[325435152,1714885847543,-842.36,0.00035616,8]
[325435153,1714885847553,-1458.64286345,0.00035616,8]
[325435154,1714885848296,-1250.97713655,0.00035616,8]
[325435155,1714885848305,-500.0,0.00035616,8]
[325435156,1714885848314,-655.58090345,0.00035616,8]
[325435157,1714885848346,-359.85154904,0.00035612,4]
[325435158,1714885848355,-186.6403716,0.00035616,8]
[325435159,1714885848367,-35.81872495,0.00035616,8]
[325435160,1714885848377,-780.0,0.00035616,8]
[325435161,1714885848386,-500.0,0.00035616,8]
[325435162,1714885848396,-2889.66,0.00035616,8]
[325435163,1714885848405,-500.0,0.00035616,8]
[325435164,1714885848414,-1919.84,0.00035616,8]
[325435165,1714885848423,-523.48127505,0.00035616,8]
[325435166,1714885848435,-602.34,0.00035616,8]
[325435420,1714886808909,9999.96,0.0003,120]
[325435422,1714887004497,-267.83236721,0.00017258,2]
[325435423,1714887004520,-3075.87418959,0.00017259,2]
[325435424,1714887004547,-450.0,0.00018,3]
[325435439,1714887032259,-390.89498046,0.000198,2]
[325435440,1714887032411,-554.52275054,0.000198,2]
[325435441,1714887032421,-1000.0,0.00019899,2]
[325435442,1714887032430,-300.0,0.000199,2]
[325435443,1714887032439,-2212.60577074,0.000199,3]
[325435444,1714887032449,-2000.0,0.0002,15]
[325435445,1714887032460,-500.0,0.0002,3]
[325435447,1714887032469,-2024.0,0.000205,2]
[325435449,1714887032478,-550.0,0.00022,3]
[325435451,1714887032487,-600.0,0.00024,3]
[325435453,1714887032497,-650.0,0.00026,3]
[325435455,1714887032506,-499.99,0.0002898,2]
[325435457,1714887032515,-150.49246751,0.0003,2]
[325435459,1714887032526,-155.878143,0.00030731,30]
[325435461,1714887032535,-2000.0,0.00031072,2]
[325435463,1714887032544,-250.0,0.0003115,2]
[325435465,1714887032557,-2212.60577074,0.00031504,5]
[325435468,1714887032567,-168.64,0.00031563,120]
[325435471,1714887032577,-10345.02826356,0.00031604,2]
[325435588,1714887038171,-5059.663921,0.00031604,2]
[325435589,1714887038401,-1867.54663435,0.00031604,2]
[325435590,1714887038415,-292.82652537,0.00031604,2]
[325435591,1714887038529,-637.265,0.00031604,2]
[325435592,1714887038544,-5697.66965572,0.00031604,2]
[325435593,1714887038558,-164.02,0.00031745,15]
[325435595,1714887038570,-250.0,0.00031765,2]
[325435596,1714887038582,-2000.0,0.00031853,3]
[325435597,1714887038595,-165.97,0.00032025,120]
[325435598,1714887038607,-368.64,0.00032885,2]
[325435599,1714887038619,-176.70396605,0.00033888,7]
[325435600,1714887038632,-181.43,0.00034005,120]
[325435601,1714887038644,-165.97,0.00034605,120]
[325435602,1714887038656,-1028.4511999,0.00035,5]
[325435603,1714887038668,-7030.35767387,0.00035,5]
[325435604,1714887038679,-1333.97275024,0.00035158,2]
[325435605,1714887038690,-6305.28577133,0.00035258,4]
[325435606,1714887038701,-200.0,0.00035331,10]
[325435607,1714887038713,-1000.0,0.00035331,15]
[325435608,1714887038724,-500.0,0.00035331,10]
[325435609,1714887038736,-1333.97275022,0.00035337,2]
[325435610,1714887038748,-10338.6550977,0.0003535,10]
[325435611,1714887038760,-278.92060217,0.00035516,8]
[325435612,1714887038772,-174.18599227,0.00035516,8]
[325435613,1714887038784,-170.77773329,0.00035516,2]
[325435614,1714887038796,-170.82464975,0.00035516,2]
[325435615,1714887038809,-214.83443712,0.00035516,9]
[325435616,1714887038821,-3958.1892,0.00035589,10]
[325435617,1714887038833,-160.0,0.000356,9]
[325435619,1714887038844,-4588.05758924,0.000356,6]
[325435622,1714887038856,-2638.08241204,0.00035603,2]
[325435649,1714887040350,-1333.97275022,0.00035516,2]
[325435650,1714887040361,-903.32479856,0.00035603,2]
[325435651,1714887040370,-650.77710838,0.00035603,2]
[325435652,1714887040382,-2030.1395477,0.00035603,2]
[325435653,1714887041791,-872.89500012,0.00035603,2]
[325435667,1714887043422,-27391.64781833,0.00035603,2]
[325435668,1714887043434,-3543.86413669,0.00035603,2]
[325435669,1714887043682,-1254.51609524,0.00035603,2]
[325435691,1714887047039,-397.0,0.00035603,2]
[325435692,1714887053014,174.40588825,0.00018,2]
[325435693,1714887058110,156.06605412,0.00018,2]
[325435694,1714887058405,4102.15710995,0.00018,2]
[325435695,1714887135782,-300.0,0.00017158,2]
[325435696,1714887175128,-527.77259226,0.00017259,2]
[325435698,1714887605744,-3285.39870551,0.00017259,2]
[325435699,1714887658423,-267.83236721,0.00017259,2]
[325435700,1714887658448,-11013.36799691,0.00017259,2]
[325435701,1714887689142,946.83471845,0.00017259,2]
[325435702,1714887722395,300.0,0.00013807,2]
[325435704,1714888203095,150.0,0.00013807,2]
[325435705,1714888203260,150.0,0.00013807,2]
[325435706,1714888203496,150.0,0.00013807,2]
[325435707,1714888203669,150.0,0.00013807,2]
[325435708,1714888204071,150.0,0.00013807,2]
[325435709,1714888204280,150.0,0.00013807,2]
[325435710,1714888204470,150.0,0.00013807,2]
[325435711,1714888204688,150.0,0.00013807,2]
[325435712,1714888204921,150.0,0.00013807,2]
[325435713,1714888205094,150.0,0.00013807,2]
[325435714,1714888205264,150.0,0.00013807,2]
[325435715,1714888205426,150.0,0.00013807,2]
[325435716,1714888205620,150.0,0.00013807,2]
[325435719,1714888232481,-2129.03947114,0.00017259,2]
[325435720,1714888232491,-610.71902464,0.00017259,2]
[325435742,1714888238381,-490.1733676,0.00017259,2]
[325435743,1714888238455,-2348.40046312,0.00017259,2]
[325435744,1714888238466,-960.75701597,0.00017259,2]
[325435745,1714888238527,-1100.0,0.00017259,2]
[325435751,1714888240356,-4614.38183176,0.00017259,2]
[325435752,1714888240366,-1174.34,0.00017259,2]
[325435753,1714888240376,-267.83236721,0.00021643,2]
[325435754,1714888240386,-156.47,0.00021644,2]
[325435755,1714888240395,-300.0,0.00025912,2]
[325435756,1714888240404,-175.66,0.00026516,2]
[325435757,1714888240414,-1000.0,0.00026531,2]
[325435758,1714888240425,-424.98088074,0.00027784,2]
[325435760,1714888240435,-150.0,0.00028792,2]
[325435761,1714888240446,-154.865,0.00028792,2]
[325435762,1714888240456,-163.053,0.00028792,2]
[325435763,1714888240466,-153.181,0.00028792,2]
[325435764,1714888240475,-275.0,0.00028792,2]
[325435765,1714888240485,-158.936,0.00028792,2]
[325435766,1714888240494,-150.5,0.0002897,15]
[325435767,1714888240503,-150.5,0.0002897,15]
[325435768,1714888240512,-706.0,0.0002897,15]
[325435769,1714888240522,-150.5,0.0002897,15]
[325435770,1714888240531,-150.5,0.0002897,15]
[325435771,1714888240540,-150.5,0.0002898,15]
[325435772,1714888240550,-150.5,0.0002898,15]
[325435773,1714888240559,-706.0,0.0002898,15]
[325435774,1714888240568,-150.5,0.0002898,15]
[325435775,1714888240577,-167.75,0.0002898,15]
[325435776,1714888240587,-150.5,0.0002898,15]
[325435777,1714888240597,-150.5,0.0002899,15]
[325435778,1714888240605,-150.5,0.0002899,15]
[325435779,1714888240615,-150.5,0.0002899,15]
[325435780,1714888240624,-706.0,0.0002899,15]
[325435781,1714888240633,-150.5,0.0002899,15]
[325435782,1714888240643,-150.5,0.0002899,15]
[325435783,1714888240653,-6999.0,0.00030734,2]
[325435784,1714888240662,-706.0,0.0003097,15]
[325435785,1714888240671,-150.5,0.0003097,15]
[325435786,1714888240681,-706.0,0.0003098,15]
[325435787,1714888240690,-182.32,0.0003098,15]
[325435788,1714888240700,-150.5,0.0003098,15]
[325435789,1714888240710,-259.56,0.0003099,15]
[325435790,1714888240721,-706.0,0.0003099,15]
[325435791,1714888240731,-230.27,0.0003099,15]
[325435792,1714888240742,-150.5,0.0003099,15]
[325435793,1714888240752,-150.5,0.0003099,15]
[325435794,1714888240762,-150.0,0.00031792,2]
[325435795,1714888240774,-250.0,0.00032875,2]
[325435796,1714888240784,-1497.38,0.00032876,7]
[325435797,1714888240795,-250.0,0.00032949,115]
[325435798,1714888240806,-164.02,0.00032956,15]
[325435799,1714888240817,-2000.0,0.00032957,120]
[325435800,1714888240827,-168.64,0.00033013,120]
[325435801,1714888240836,-16120.93,0.00033013,2]
[325435802,1714888240846,-1497.38,0.0003315,8]
[325435803,1714888240856,-156.47,0.00033178,2]
[325435804,1714888240864,-1497.38,0.00033424,9]
[325435805,1714888240873,-294.91,0.00033677,2]
[325435806,1714888240882,-1497.38,0.00033698,10]
[325435807,1714888240891,-181.43,0.0003384,120]
[325435808,1714888240901,-1497.38,0.00033972,11]
[325435809,1714888240910,-1940.05,0.00034,2]
[325435810,1714888240919,-1497.38,0.00034246,12]
[325435811,1714888240929,-165.97,0.00034338,120]
[325435812,1714888240941,-289.0,0.00034395,7]
[325435813,1714888240951,-1497.38,0.0003452,13]
[325435814,1714888240960,-150.0,0.00034548,10]
[325435815,1714888240971,-1497.38,0.00034794,14]
[325435816,1714888240980,-511.18427842,0.00035,7]
[325435817,1714888240991,-1497.38,0.00035068,15]
[325435818,1714888241000,-500.0,0.0003533,10]
[325435819,1714888241009,-200.0,0.00035331,10]
[325435820,1714888241022,-500.0,0.00035331,10]
[325435821,1714888241031,-200.0,0.00035331,10]
[325435822,1714888241042,-1497.38,0.00035342,16]
[325435823,1714888241051,-176.70396605,0.00035451,7]
[325435824,1714888241060,-167.00144416,0.00035515,2]
[325435825,1714888241070,-174.18599227,0.00035516,8]
[325435826,1714888241080,-4499.0,0.00035586,15]
[325435827,1714888241090,-150.5,0.00035586,15]
[325435828,1714888241100,-9164.0,0.00035586,15]
[325435829,1714888241110,-4499.0,0.00035596,15]
[325435830,1714888241119,-150.5,0.00035596,15]
[325435831,1714888241129,-9164.0,0.00035596,15]
[325435832,1714888241138,-427.42348965,0.00035596,4]
[325435833,1714888241148,-160.0,0.000356,9]
[325435834,1714888241158,-153.51324,0.00035603,2]
[325435835,1714888241167,-972.53,0.00035605,3]
[325435836,1714888241176,-486.27,0.00035605,3]
[325435837,1714888241185,-243.13,0.00035605,3]
[325435838,1714888241195,-193.41308258,0.00035606,2]
[325435839,1714888241204,-193.41308258,0.00035606,2]
[325435840,1714888241214,-176.53,0.00035606,2]
[325435841,1714888241223,-176.53,0.00035606,2]
[325435842,1714888241233,-4499.0,0.00035606,15]
[325435843,1714888241242,-150.5,0.00035606,15]
[325435844,1714888241252,-9164.0,0.00035606,15]
[325435845,1714888241261,-358.83510704,0.00035613,4]
[325435846,1714888241271,-275.38018142,0.00035614,4]
[325435847,1714888241281,-158.1052925,0.00035614,4]
[325435848,1714888241291,-155.74474673,0.00035614,2]
[325435849,1714888241301,-281.44596006,0.00035614,4]
[325435850,1714888241310,-155.27309265,0.00035614,4]
[325435851,1714888241320,-1388.02227638,0.00035614,4]
[325435852,1714888241329,-1214.03292019,0.00035614,4]
[325435853,1714888241339,-489.33921436,0.00035614,4]
[325435854,1714888241349,-408.58513417,0.00035614,4]
[325435855,1714888241358,-657.43863764,0.00035614,4]
[325435856,1714888241368,-170.94453194,0.00035614,4]
[325435857,1714888241377,-235.10557688,0.00035615,2]
[325435858,1714888241386,-52669.60196851,0.00035615,4]
[325435859,1714888241396,-500.0,0.00035615,2]
[325435860,1714888241405,-888.0,0.00035615,3]
[325435861,1714888241415,-277.0,0.00035616,5]
[325435862,1714888241424,-200.0,0.00035616,8]
[325435863,1714888241434,-1158.63,0.00035616,8]
[325435864,1714888241444,-500.0,0.00035616,8]
[325435865,1714888241454,-500.0,0.00035616,8]
[325435866,1714888241464,-1257.58,0.00035616,8]
[325435867,1714888241473,-763.05,0.00035616,8]
[325435868,1714888241482,-500.0,0.00035616,8]
[325435869,1714888241494,-500.0,0.00035616,8]
[325435870,1714888241503,-1120.12,0.00035616,8]
[325435871,1714888241513,-500.0,0.00035616,8]
[325435872,1714888241522,-834.08,0.00035616,8]
[325435873,1714888241531,-500.0,0.00035616,8]
[325435874,1714888241541,-670.25,0.00035616,8]
[325435875,1714888241551,-500.0,0.00035616,8]
[325435876,1714888241560,-1339.67,0.00035616,8]
[325435877,1714888241570,-511.99463486,0.00035616,8]
[325435878,1714888241580,-846.19,0.00035616,8]
[325435879,1714888241589,-1757.22,0.00035616,2]
[325435880,1714888241600,-500.0,0.00035616,8]
[325435881,1714888241611,-500.0,0.00035616,8]
[325435882,1714888241622,-500.0,0.00035616,8]
[325435883,1714888241632,-500.0,0.00035616,8]
[325435884,1714888241642,-500.0,0.00035616,8]
[325435885,1714888241652,-1585.55,0.00035616,8]
[325435886,1714888241662,-500.0,0.00035616,8]
[325435887,1714888241674,-500.0,0.00035616,8]
[325435888,1714888241685,-500.0,0.00035616,8]
[325435889,1714888241696,-957.26,0.00035616,8]
[325435890,1714888241706,-1531.57,0.00035616,8]
[325435891,1714888241717,-1000.54,0.00035616,8]
[325435892,1714888241726,-300.0,0.00035616,7]
[325435893,1714888241736,-500.0,0.00035616,8]
[325435894,1714888241745,-540.7,0.00035616,8]
[325435895,1714888241755,-1574.74,0.00035616,8]
[325435896,1714888241765,-500.0,0.00035616,8]
[325435897,1714888241774,-500.0,0.00035616,8]
[325435898,1714888241783,-913.63,0.00035616,8]
[325435899,1714888241793,-500.0,0.00035616,8]
[325435900,1714888241802,-1516.53,0.00035616,8]
[325435901,1714888241812,-1050.33,0.00035616,8]
[325435902,1714888241822,-914.5,0.00035616,8]
[325435903,1714888241831,-714.15,0.00035616,8]
[325435904,1714888241841,-541.92,0.00035616,8]
[325435905,1714888241851,-623.06,0.00035616,8]
[325435906,1714888241860,-500.0,0.00035616,8]
[325435907,1714888241870,-1105.41,0.00035616,8]
[325435908,1714888241880,-500.0,0.00035616,8]
[325435909,1714888241890,-725.28,0.00035616,8]
[325435910,1714888241900,-917.56,0.00035616,8]
[325435911,1714888241909,-677.89,0.00035616,8]
[325435912,1714888241918,-500.0,0.00035616,8]
[325435913,1714888241929,-500.0,0.00035616,8]
[325435914,1714888241941,-500.0,0.00035616,8]
[325435915,1714888241950,-500.0,0.00035616,8]
[325435916,1714888241960,-994.12,0.00035616,8]
[325435917,1714888241971,-500.0,0.00035616,8]
[325435918,1714888241980,-313.13253023,0.00035616,8]
[325435919,1714888241992,-919.05,0.00035616,8]
[325435920,1714888242002,-500.0,0.00035616,8]
[325435921,1714888242012,-1228.11,0.00035616,8]
[325435922,1714888242023,-837.43,0.00035616,8]
[325435923,1714888242033,-500.0,0.00035616,8]
[325435924,1714888242043,-863.54,0.00035616,8]
[325435925,1714888242052,-1529.75,0.00035616,8]
[325435926,1714888242062,-500.0,0.00035616,8]
[325435927,1714888242072,-500.0,0.00035616,8]
[325435928,1714888242081,-500.0,0.00035616,8]
[325435929,1714888242092,-500.0,0.00035616,8]
[325435930,1714888242101,-806.26,0.00035616,8]
[325435931,1714888242112,-606.39,0.00035616,8]
[325435932,1714888242122,-550.56,0.00035616,8]
[325435933,1714888242132,-743.56,0.00035616,8]
[325435934,1714888242141,-620.01,0.00035616,8]
[325435935,1714888242150,-736.14,0.00035616,8]
[325435936,1714888242160,-500.0,0.00035616,8]
[325435937,1714888242169,-1190.49,0.00035616,8]
[325435938,1714888242179,-500.0,0.00035616,8]
[325435939,1714888242188,-500.0,0.00035616,8]
[325435940,1714888242198,-500.0,0.00035616,8]
[325435941,1714888242208,-1281.27,0.00035616,8]
[325435942,1714888242217,-816.52,0.00035616,8]
[325435943,1714888242226,-500.0,0.00035616,8]
[325435944,1714888242238,-749.14,0.00035616,8]
[325435945,1714888242247,-654.47,0.00035616,8]
[325435946,1714888242256,-155.50720412,0.00035616,8]
[325435947,1714888242266,-755.57,0.00035616,8]
[325435948,1714888242276,-790.95,0.00035616,8]
[325435949,1714888242286,-500.0,0.00035616,8]
[325435950,1714888242295,-1215.08,0.00035616,8]
[325435951,1714888242304,-500.0,0.00035616,8]
[325435952,1714888242314,-304.66786024,0.00035616,8]
[325435953,1714888242324,-1212.73,0.00035616,8]
[325435954,1714888242334,-500.0,0.00035616,8]
[325435955,1714888242345,-1600.7,0.00035616,8]
[325435956,1714888242355,-1248.12,0.00035616,8]
[325435957,1714888242365,-500.0,0.00035616,8]
[325435958,1714888242375,-660.43,0.00035616,8]
[325435959,1714888242384,-656.14,0.00035616,8]
[325435960,1714888242393,-1497.38,0.00035616,17]
[325435961,1714888242403,-837.3,0.00035616,8]
[325435962,1714888242412,-500.0,0.00035616,8]
[325435963,1714888242422,-1071.17,0.00035616,8]
[325435964,1714888242780,-428.44068576,0.00035616,8]
[325435965,1714888242796,-469.23359371,0.00035616,8]
[325435966,1714888242805,-1267.66,0.00035616,8]
[325435967,1714888242815,-500.0,0.00035616,8]
[325435968,1714888242824,-838.06,0.00035616,8]
[325435969,1714888242834,-1047.74,0.00035616,8]
[325435970,1714888242844,-1065.18,0.00035616,8]
[325435971,1714888242854,-1069.78,0.00035616,8]
[325435972,1714888242863,-528.98068181,0.00035616,8]
[325435973,1714888242873,-500.0,0.00035616,8]
[325435974,1714888242883,-758.63,0.00035616,8]
[325435975,1714888242893,-953.52,0.00035616,8]
[325435976,1714888242902,-695.82,0.00035616,8]
[325435977,1714888242911,-626.56,0.00035616,8]
[325435978,1714888242921,-689.54,0.00035616,8]
[325435979,1714888242936,-812.1,0.00035616,8]
[325435980,1714888242946,-500.0,0.00035616,8]
[325435981,1714888242955,-500.0,0.00035616,8]
[325435982,1714888242964,-1029.16,0.00035616,8]
[325435983,1714888242975,-500.0,0.00035616,8]
[325435984,1714888242984,-500.0,0.00035616,8]
[325435985,1714888242995,-612.66,0.00035616,8]
[325435986,1714888243008,-623.41,0.00035616,8]
[325435987,1714888243018,-500.0,0.00035616,8]
[325435988,1714888243028,-836.72,0.00035616,8]
[325435989,1714888243037,-1561.16,0.00035616,8]
[325435990,1714888243047,-500.0,0.00035616,8]
[325435991,1714888243057,-157.26309299,0.00035616,8]
[325435992,1714888243067,-535.82,0.00035616,8]
[325435993,1714888243076,-717.45,0.00035616,8]
[325435994,1714888243086,-500.0,0.00035616,8]
[325435995,1714888243095,-500.0,0.00035616,8]
[325435996,1714888243105,-622.63,0.00035616,8]
[325435997,1714888243114,-500.0,0.00035616,8]
[325435999,1714888243124,-698.92,0.00035616,8]
[325436000,1714888243133,-500.0,0.00035616,8]
[325436001,1714888243143,-1506.55,0.00035616,8]
[325436002,1714888243152,-661.73,0.00035616,8]
[325436003,1714888243161,-607.81,0.00035616,8]
[325436004,1714888243171,-500.0,0.00035616,8]
[325436006,1714888243180,-500.0,0.00035616,8]
[325436008,1714888243189,-500.0,0.00035616,8]
[325436010,1714888243199,-618.03,0.00035616,8]
[325436012,1714888243208,-504.79964253,0.00035616,8]
[325436014,1714888243217,-500.0,0.00035616,8]
[325436016,1714888243226,-500.0,0.00035616,8]
[325436018,1714888243236,-500.0,0.00035616,8]
[325436019,1714888243246,-677.27,0.00035616,8]
[325436020,1714888243255,-1029.96,0.00035616,8]
[325436021,1714888243264,-1555.81,0.00035616,8]
[325436022,1714888243274,-500.0,0.00035616,8]
[325436023,1714888243283,-712.43,0.00035616,8]
[325436024,1714888243293,-262.9101174,0.00035616,8]
[325436025,1714888243302,-500.0,0.00035616,8]
[325436026,1714888243312,-500.0,0.00035616,8]
[325436027,1714888243321,-500.0,0.00035616,8]
[325436028,1714888243331,-1081.32,0.00035616,8]
[325436029,1714888243341,-500.0,0.00035616,8]
[325436030,1714888243350,-866.12,0.00035616,8]
[325436031,1714888243359,-500.0,0.00035616,8]